Cogmind - Beta 9.6 @@@ ROGUE MODE // 2020.08.27 @ 20:50:28 Player: Cracklepappy Result: Destroyed by S-10 Pest with Light Assault Rifle Performance ------------- Evolutions (0) 0 Regions Visited (2) 400 Robots Destroyed (25) 125 Value Destroyed (628) 628 Prototype IDs (3) 60 Alien Tech Used (0) 0 Bonus (0) 0 TOTAL SCORE: 1213 Bonus ------- None Cogmind --------- Core Integrity 0/250 Matter 300/300 Energy 75/100 System Corruption 9% Temperature Cool (0) Movement Treading (180) Ox1 Location -10/Mines Parts ------- > --- POWER (1) -------- (None) > --- PROPULSION (2) --- Light Treads Light Treads > --- UTILITY (2) ------ Large Storage Unit High-capacity Storage Unit > --- WEAPON (2) ------- Heavy Hammer Heavy Hammer > --- INVENTORY (18) --- Ion Engine Light Ion Engine Compact Wheel Large Storage Unit High-capacity Battery (400) Improved Sensor Array Improved Sensor Array Improved Sensor Array Light Armor Plating Beam Cannon Beam Cannon Beam Cannon Beam Cannon Datajack Mining Laser Heavy Hammer Peak State ------------ > --- POWER ------------ Light Ion Engine > --- PROPULSION ------- Light Treads Light Treads > --- UTILITY ---------- Large Storage Unit High-capacity Storage Unit > --- WEAPON ----------- Heavy Hammer Heavy Hammer > --- INVENTORY -------- Ion Engine Light Ion Engine Compact Wheel Large Storage Unit High-capacity Battery Improved Sensor Array Improved Sensor Array Improved Sensor Array Light Armor Plating Beam Cannon Beam Cannon Beam Cannon Beam Cannon Datajack Mining Laser Heavy Hammer [Rating: 11] Favorites ----------- Power Light Ion Engine Engine Light Ion Engine Propulsion Wheel Treads Light Treads Wheel Wheel Utility Large Storage Unit Storage Large Storage Unit Weapon Assault Rifle Energy Gun Medium Laser Energy Cannon Beam Cannon Ballistic Gun Assault Rifle Launcher Grenade Launcher Impact Weapon Heavy Hammer Build | -11 -10 -10 ------- Run | Scr Mat Min Slots Evolved . | . . . Power . | . . . Propulsion . | . . . Utility . | . . . Weapon . | . . . Parts Attached 24 | 8 15 1 Power 2 | 1 1 . Engine 2 | 1 1 . Core . | . . . Reactor . | . . . Propulsion 5 | 2 3 . Treads 2 | . 2 . Leg . | . . . Wheel 3 | 2 1 . Hover . | . . . Flight . | . . . Utility 5 | 2 3 . Device . | . . . Storage 5 | 2 3 . Processor . | . . . Hackware . | . . . Protection . | . . . Artifact . | . . . Weapon 12 | 3 8 1 Energy Gun 3 | 2 1 . Energy Cannon 2 | . 2 . Ballistic Gun 4 | 1 3 . Ballistic Cannon . | . . . Launcher 1 | . 1 . Special Weapon . | . . . Impact Weapon 2 | . 1 1 Slashing Weapon . | . . . Piercing Weapon . | . . . Special Melee Weapon . | . . . Unidentified Prototypes . | . . . Parts Lost 8 | . 7 1 Power 2 | . 1 1 Propulsion 3 | . 3 . Utility . | . . . Weapon 3 | . 3 . Highest Loss Streak 3 | . 3 1 Average Slot Usage (%) 94 | . 95 89 Engine 11 | . 13 4 Treads 13 | . 10 28 Wheel 14 | . 17 . Storage 28 | . 28 28 Energy Gun 1 | . 1 . Energy Cannon 5 | . 5 2 Ballistic Gun 10 | . 12 . Impact Weapon 8 | . 4 25 Naked Turns . | . . . Heaviest Build 57 | 16 57 57 Greatest Support 40 | 26 40 40 Greatest Overweight (x) 1 | . 1 1 Average Overweight (x) . | . . 1 Largest Inventory Capacity 18 | 8 18 18 Average Capacity 14 | 6 14 18 Most Carried 16 | 8 16 16 Average Carried 12 | 3 12 16 Final Capacity 18 | 8 18 18 Final Carried 16 | 8 16 16 Class Distribution -------------------- 100% | Mutant Dominant Class ---------------- Mutant | -10/Materials Mutant | -10/Mines Resources | -11 -10 -10 ----------- Run | Scr Mat Min Matter Collected 695 | 276 362 57 Remotely . | . . . Salvage Created 714 | 88 531 95 Parts 39 | 6 30 3 Haulers Intercepted . | . . . Recyclers Shooed . | . . . Parts Field Recycled . | . . . Retrieved Matter . | . . . Parts Self-Destructed . | . . . Prevented . | . . . Kills | -11 -10 -10 ------- Run | Scr Mat Min Combat Hostiles Destroyed 19 | . 16 3 Melee 1 | . . 1 Guns 11 | . 11 . Cannons 4 | . 4 . AOE 1 | . 1 . Classes Destroyed 6 | 2 4 . Worker 2 | . 2 . Tunneler 1 | 1 . . Recycler 1 | 1 . . Watcher 2 | . 2 . Swarmer 6 | . 5 1 Grunt 13 | . 11 2 Best Kill Streak 8 | 2 8 1 Combat Bots Only 7 | . 7 1 Max Kills in Single Turn 2 | 1 2 1 Gunslinging . | . . . Exploded 1 | . 1 . Melee 1 | . . 1 Uniques/NPCs Destroyed . | . . . Combat | -11 -10 -10 -------- Run | Scr Mat Min Damage Taken 1126 | . 849 277 Core 250 | . 160 90 Absorbed by Shields . | . . . Core Remaining (%) 100 | 100 . . Volleys Fired 103 | 7 94 2 Largest 2 | 2 2 1 Hottest 90 | 90 80 60 Shots Fired 148 | 14 132 2 Gun 115 | 14 101 . Cannon 30 | . 28 2 Launcher 3 | . 3 . Special . | . . . Kinetic 93 | . 93 . Thermal 52 | 14 36 2 Explosive 3 | . 3 . Electromagnetic . | . . . Robot Hit Streak 13 | 4 13 2 Robot Miss Streak 5 | 2 5 . Penetration Max . | . . . Secondary Targets 1 | . 1 . Max Gunslinging Chain 1 | . 1 . Shots Hit Robots 99 | 7 79 13 Core Hits 38 | 3 33 2 Critical Hits . | . . . Critical Kills . | . . . Critical Parts Destroyed . | . . . Melee Attacks 33 | . 2 31 Impact 33 | . 2 31 Slashing . | . . . Piercing . | . . . Sneak Attacks . | . . . Combat Hostiles . | . . . Follow-up Attacks 2 | . . 2 Damage Inflicted 1806 | 84 1375 347 Guns 764 | 84 680 . Cannons 331 | . 297 34 Explosions 389 | . 389 . Melee 313 | . . 313 Ramming 9 | . 9 . Kinetic 593 | . 593 . Thermal 502 | 84 384 34 Explosive 389 | . 389 . Electromagnetic . | . . . Impact 313 | . . 313 Slashing . | . . . Piercing . | . . . Highest Corruption 9 | . 9 9 Average Corruption 6 | . 5 9 Corruption Purged . | . . . Effects 29 | . 19 10 Message Errors 5 | . 5 . Matter Fused 6 | . 4 2 Heat Flow Errors 2 | . 1 1 Energy Discharges 2 | . 1 1 Parts Rejected 1 | . 1 . Data Loss (minor) 3 | . 1 2 Data Loss (major) 1 | . 1 . Misfires 1 | . 1 . Targeting Errors 8 | . 4 4 Overload Shots . | . . . Overflow Damage 118 | . 43 75 Projectiles 7 | . 7 . Explosions 36 | . 36 . Melee 75 | . . 75 Knockbacks 1 | . 1 . Impact 1 | . 1 . Kinetic . | . . . Secondary . | . . . Self-Inflicted Damage 98 | . 98 . Shots 1 | . 1 . Rammed 1 | . 1 . Targets Rammed 1 | . 1 . Kicked . | . . . Crushed . | . . . Highest Temperature 169 | 130 169 112 Average Temperature 44 | 59 41 45 Received Heat Transfer 408 | . 306 102 Siege Activations . | . . . Robots Corrupted . | . . . Combat Hostiles . | . . . Parts Fried 2 | . . 2 Impact Corruptions 5 | . . 5 Robots Melted . | . . . Combat Hostiles . | . . . Parts Melted 2 | . 2 . Heat Transferred 1173 | 211 888 74 Parts Sabotaged . | . . . Parts Stolen . | . . . Parts Stripped . | . . . Power Chain Reactions . | . . . Missiles Intercepted . | . . . Alert | -11 -10 -10 ------- Run | Scr Mat Min Peak Influence 271 | 10 271 83 Average Influence 79 | 2 95 50 Maximum Alert Level 1 | . 1 . Low Security (%) 87 | 100 83 100 Level 1 12 | . 16 . Level 2 . | . . . Level 3 . | . . . Level 4 . | . . . Level 5 . | . . . High Security . | . . . Max Security . | . . . Squads Dispatched 3 | . 3 . Investigation 2 | . 2 . Extermination . | . . . Reinforcement 1 | . 1 . Assault . | . . . Garrison . | . . . Intercept . | . . . Construction Impeded . | . . . Haulers Reinforced . | . . . Stealth | -11 -10 -10 --------- Run | Scr Mat Min Distress Signals 1 | . 1 . Communications Jammed . | . . . Distress Signals . | . . . Times Spotted 40 | . 35 5 Peak Tracking Total 5 | . 5 3 Tactical Retreats 3 | . 2 1 Traps | -11 -10 -10 ------- Run | Scr Mat Min Traps Triggered 7 | . 7 . Indirectly . | . . . Trap Hack Attempts . | . . . Triggered . | . . . Disarmed . | . . . Reprogrammed . | . . . Reused . | . . . Traps Extracted . | . . . Installed . | . . . Triggered . | . . . Machines | -11 -10 -10 ---------- Run | Scr Mat Min Machines Disabled 4 | . 4 . Max in Single Turn 2 | . 2 . Machines Sabotaged . | . . . Garrisons Compromised . | . . . Overloaded Fab Kills . | . . . Fab Network Shutdowns . | . . . Hacking | -11 -10 -10 --------- Run | Scr Mat Min Machines Accessed 8 | . 8 . Terminals 6 | . 6 . Fabricators . | . . . Repair Stations . | . . . Recycling Units 2 | . 2 . Scanalyzers . | . . . Garrison Access . | . . . Total Hacks 16 | . 16 . Successful 9 | . 9 . Failed 7 | . 7 . Catastrophic 2 | . 2 . Database Lockouts . | . . . Manual 8 | . 8 . Terminals 13 | . 13 . Fabricators . | . . . Repair Stations . | . . . Recycling Units 3 | . 3 . Scanalyzers . | . . . Garrison Access . | . . . Terminal Hacks 7 | . 7 . Part Schematic 1 | . 1 . Prototype ID Bank 2 | . 2 . Unreport Threat 2 | . 2 . Locate Traps 1 | . 1 . Zone Layout 1 | . 1 . Fabricator Hacks . | . . . Repair Station Hacks . | . . . Recycling Unit Hacks . | . . . Scanalyzer . | . . . Garrison Access Hacks . | . . . Unauthorized Hacks 2 | . 2 . Terminals . | . . . Fabricators . | . . . Repair Stations . | . . . Recycling Units 2 | . 2 . Tunnel 2 | . 2 . Scanalyzers . | . . . Garrison Access . | . . . Data Cores Recovered . | . . . Used . | . . . Hacking Detections 6 | . 6 . Full Trace Events . | . . . Feedback Events . | . . . Feedback Blocked . | . . . Robot Schematics Acquired . | . . . Robots Built . | . . . Matter . | . . . Time . | . . . Total Robot Build Rating . | . . . Part Schematics Acquired 1 | . 1 . Parts Built . | . . . Matter . | . . . Time . | . . . Total Part Build Rating . | . . . Parts Repaired . | . . . Time . | . . . Parts Recycled . | . . . Recycled Matter . | . . . Retrieved Matter . | . . . Retrieved Components . | . . . Parts Scanalyzed . | . . . Part Schematics Acquired . | . . . Parts Damaged . | . . . Bothacking | -11 -10 -10 ------------ Run | Scr Mat Min Used RIF Installer . | . . . Robots Hacked . | . . . Non-combat . | . . . Combat . | . . . Robot Hacks Applied . | . . . Relay Couplers Released . | . . . Robots Rewired . | . . . Allies Hacked . | . . . Hacks Repelled . | . . . Allies | -11 -10 -10 -------- Run | Scr Mat Min Total Allies . | . . . Largest Group . | . . . Highest-Rated Group . | . . . Highest-Rated Ally . | . . . Total Orders . | . . . Ally Attacks . | . . . Total Damage . | . . . Kills . | . . . Allies Corrupted . | . . . Allies Melted . | . . . Intel | -11 -10 -10 ------- Run | Scr Mat Min Robot Analysis Total . | . . . Derelict Logs Recovered . | . . . Drone Launches . | . . . Drone Recoveries . | . . . Exploration | -11 -10 -10 ------------- Run | Scr Mat Min Turns Passed 1192 | 105 892 195 Spaces Moved 660 | 66 542 52 Core 2 | 2 . . Treads 203 | . 151 52 Legs . | . . . Wheels 455 | 64 391 . Hover . | . . . Flight . | . . . Fastest Speed 50 | 50 80 180 Average Speed 115 | 89 112 180 Slowest Speed 180 | 100 180 180 Overloaded Moves . | . . . Propulsion Burnouts . | . . . Robots Hopped . | . . . Cave-ins Triggered . | . . . Exploration Rate (%) 36 | 5 97 6 Regions Visited 2 Branch Regions 1 Pre-discovered Areas 2 | . 2 . Known Exits Taken . | . . . Unknown Exits Taken 2 | 1 1 . Scrap Searched . | . . . Spaces Dug 8 | . 2 6 Terrain Destroyed 53 | . 47 6 Melee 8 | . 2 6 Projectile . | . . . AOE 45 | . 45 . Actions | -11 -10 -10 --------- Run | Scr Mat Min Total 887 | 94 697 96 Wait 33 | 6 12 15 Move 658 | 65 541 52 Hop . | . . . Pick Up 29 | 8 21 . Fast Attach 10 | 7 3 . Attach 7 | . 7 . Detach . | . . . Swap 7 | 1 5 1 Drop 11 | . 11 . Fire 103 | 7 94 2 Melee 28 | . 2 26 Ram 1 | . 1 . Kick . | . . . Crush . | . . . Escape Stasis . | . . . Rewire . | . . . Trap . | . . . Miscellaneous . | . . . Route ------- -11/Scrapyard -10/Materials (discovered 4 exits: [*Mat x3] / [*Min]) -10/Mines History --------- Turn | Location | Event 25 | -11/Scrapyard | Discovered new exit (range 15) 106 | -11/Scrapyard | Entered Materials 196 | -10/Materials | Discovered new exit (range 8) 242 | -10/Materials | Destroyed 7 combat bots 309 | -10/Materials | Build established: Mutant 456 | -10/Materials | Core integrity fell below 50% 471 | -10/Materials | Lost 3 parts (1p2w) 490 | -10/Materials | Discovered new exit (range 7) 570 | -10/Materials | Discovered new exit (range 6) 812 | -10/Materials | Discovered new exit (range 13) 998 | -10/Materials | Entered Mines 1050 | -10/Mines | Core integrity fell below 20% 1193 | -10/Mines | Destroyed by S-10 Pest with Light Assault Rifle Last Messages --------------- 01066_ Acquired 35 matter. 01067_ Acquired 8 matter. 01068_ System corrupted: Component data lost. 01074_ K-01 Serf collects debris. 01078_ K-01 Serf cleans the Plasma Injector. 01109_ System corrupted: Matter fused (-5). 01111_ System corrupted: Hvy. Hammer targeting data glitched. 01133_ System corrupted: Component data lost. 01142_ System corrupted: Hvy. Hammer targeting data glitched. 01161_ System corrupted: Matter fused (-9). 01172_ Acquired 14 matter. 01181_ Hvy. Hammer follow-up attack on S-10 Pest. 01181_ Destroyed Flight Unit. 01181_ S-10 Pest system corrupted by crushing effect. 01187_ System corrupted: Hvy. Hammer targeting data glitched. 01190_ System corrupted: Energy discharge (-35). 01190_ Destroyed Flight Unit. 01190_ Destroyed Lgt. Ion Engine. 01190_ S-10 Pest system corrupted by crushing effect. 01191_ S-10 Pest system terminally corrupted. Map ----- +----------------------------------------------------+ | | | | | | | | | | | | | | | | | | | | | | | | | | | | | | | ????????????????????????????? | | ?#########??????????????????? | | ?# #??????????????????? | | ?# ########### #?????? | | ?#""" #????? | | ?#""" #????? | | ?#""" ####### #?????? | | ?# #??????????????????? | | ?##s######??????????????????? | | ?##s###?????????????????????? | | ?# @ #?????????????????????? | | ?# #?????????????????????? | | ?# #?????????????????????? | | ?# #?????????????????????? | | ?# ##????????????????????? | | ?# ;##???????????????????? | | ?###;## #???????????????????? | | ???# ### #??????????????????? | | ???# #??##??????????????????? | | ???###??????????????????????? | | ????????????????????????????? | | ????????????????????????????? | | ????????????????????????????? | | ????????????????????????????? | | ????????????????????????????? | | ????????????????????????????? | | ????????????????????????????? | | ????????????????????????????? | | ????????????????????????????? | | ????????????????????????????? | | ????????????????????????????? | | ????????????????????????????? | | ????????????????????????????? | | ????????????????????????????? | | ????????????????????????????? | +----------------------------------------------------+ Best States ------------- Heat Dissipation 25 Energy Generation 10 Energy Capacity 250 Matter Stores 300 Matter Capacity 300 Sight Range 16 Terrain Scan Density 10 Evasion (%) 44 Recoil Reduction 2 Item Schematics ----------------- Hcp. Storage Unit | -10/Materials | Hacked Robot Schematics ------------------ None Fabricated ------------ Nothing Alien Tech Used ----------------- None Achievements -------------- None Challenges ------------ None Game ------ Seed InsulatedHellfireCoupler Manual? 0 Play Time 00:11:40 Cumulative 140.1 hours Start 2020.08.27 @ 20:39:33 End 2020.08.27 @ 20:50:28 Sessions 1 Manual Loads 0 Difficulty Rogue Special Mode None Game No. 175 Rogue 175 Adventurer 0 Explorer 0 Win Type - Total 2 Types 2/0/0/0/0/0/0 Lore% 51 Gallery% 68 Achievement% 49 Wizard Run 0 Options --------- ASCII 0 Keyboard 0 Movement Numpad Keybinds 0 Fullscreen 2 Font 24/Smallcaps Map View 76x50 Tactical HUD 1 Map Filters NONE Filters NONE Steam 1 RUN: 78d7031d-7446-427f-8195-4f6c41380688